bitfinex-derivatives/quotes_ETHF0:USTF0_20251024
["timestamp","ask_amount","ask_price","bid_price","bid_amount"]
[1761313844806,2.4154,3922.6,3921.4,3.2078]
[1761313845007,3.2078,3921.8,3921.0,3.2078]
[1761313845212,2.87435,3921.6,3920.8,0.45903]
[1761313845609,2.4154,3921.6,3920.6,3.2078]
[1761313845818,2.4154,3921.6,3920.7,2.4033]
[1761313846119,5.6232,3921.8,3921.1,0.45899]
[1761313846414,3.2078,3922.2,3921.9,0.4589]
[1761313846622,3.2078,3922.2,3922.0,2.86219]
[1761313846810,3.2078,3922.6,3922.0,2.4033]
[1761313847007,5.6232,3922.6,3922.2,0.45886]
[1761313847205,0.00306289,3922.7,3922.1,3.2078]
[1761313847405,0.00306289,3922.7,3922.5,2.86213]
[1761313848516,0.00306289,3922.7,3922.6,1.0521]
[1761313848708,3.2078,3923.5,3923.4,2.86203]
[1761313848910,3.2078,3923.9,3923.8,0.45869]
[1761313849111,3.2078,3924.3,3924.1,0.45865]
[1761313849420,3.2078,3924.7,3924.3,0.45862]
[1761313849612,5.6259601,3924.7,3924.3,0.4610272]
[1761313850018,3.2105601,3924.7,3924.5,2.8619]
[1761313850316,3.2105601,3924.7,3924.5,2.4033]
[1761313850520,2.4154,3924.6,3924.3,0.0024072]
[1761313850822,2.4154,3924.4,3924.3,0.0024072]
[1761313851118,5.6259601,3924.7,3924.3,0.0024072]
[1761313851316,3.2105601,3924.7,3924.5,2.8619]
[1761313851618,0.0027601,3924.7,3924.5,2.8619]
[1761313852123,0.0027601,3924.7,3924.6,2.2893]
[1761313852311,3.2105601,3924.7,3924.6,2.2893]
[1761313852517,0.0027601,3924.7,3924.6,2.2893]
[1761313852714,0.0027601,3924.7,3924.6,10.62683563]
[1761313852914,3.2078,3925.6,3925.5,2.74779]
[1761313853214,3.2078,3925.6,3925.4,0.45849]
[1761313853525,3.2078,3925.6,3925.4,2.74779]
[1761313854016,3.2078,3925.6,3924.9,2.74785]
[1761313854017,0.0022796,3925.6,3924.9,2.74785]
[1761313854223,0.0022796,3925.6,3925.2,0.45852]
[1761313854411,0.0022796,3925.6,3925.0,9.49854]
[1761313854611,0.0022796,3925.6,3925.0,9.04]
[1761313854812,0.0022796,3925.6,3925.1,2.74783]
[1761313855014,0.0022796,3925.6,3925.1,2.2893]
[1761313855210,0.0022796,3925.6,3925.2,10.422]
[1761313855419,0.0022796,3925.6,3925.2,2.2893]
[1761313855726,0.0022796,3925.6,3925.3,2.2893]
[1761313856226,0.0022796,3925.6,3925.4,2.74779]
[1761313858012,0.0022796,3925.6,3924.8,4.1175]
[1761313858218,0.0022796,3925.6,3925.1,2.64413]
[1761313858413,0.0022796,3925.6,3925.1,2.1856]
[1761313858722,2.3429,3924.6,3924.3,0.0024072]
[1761313858927,0.45866,3924.1,3923.4,0.45873]
[1761313859130,2.3429,3924.4,3923.2,7.291]
[1761313859131,3.2078,3924.4,3923.2,7.291]
[1761313859428,2.3429,3925.3,3924.4,2.64421]
[1761313859725,2.3429,3924.8,3924.0,5.3934]
[1761313859927,3.2078,3924.9,3924.4,2.1856]
[1761313860123,3.2078,3925.5,3924.6,2.1856]
[1761313860421,3.2078,3925.5,3924.7,0.45858]
[1761313860624,2.3429,3925.4,3924.6,2.1856]
[1761313860826,2.3429,3925.3,3924.5,3.6664]
[1761313861030,3.66635,3925.0,3924.3,0.45862]
[1761313861232,2.3429,3924.9,3924.1,5.3934]
[1761313861424,0.45857,3924.8,3924.2,0.45864]
[1761313861622,3.2078,3925.0,3924.0,0.00203891]
[1761313861623,2.3429,3924.3,3924.0,0.00203891]
[1761313862024,2.80153,3924.3,3924.0,0.00203891]
[1761313862225,2.3429,3924.3,3924.0,0.00203891]
[1761313862420,3.2078,3924.8,3924.3,2.1856]
[1761313862626,2.3429,3924.7,3924.0,0.00203891]
[1761313862923,2.3429,3924.7,3924.2,0.45863]
[1761313863123,2.3429,3924.7,3924.3,0.45862]
[1761313863525,0.4586,3924.6,3924.0,0.00203891]
[1761313863726,3.2078,3924.8,3924.0,0.00203891]
[1761313863928,2.92056585,3924.7,3924.0,0.00203891]
[1761313864234,2.80154,3924.2,3924.0,0.00203891]
[1761313864731,2.3429,3924.2,3924.0,0.00203891]
[1761313864933,3.2078,3924.3,3924.1,2.1856]
[1761313865131,3.2100796,3925.6,3925.5,0.45849]
[1761313865330,3.2100796,3925.6,3925.5,2.64409]
[1761313865930,0.0022796,3925.6,3925.5,2.64409]
[1761313866137,3.2078,3926.1,3926.0,2.64403]
[1761313866435,3.2078,3926.6,3926.5,2.64397]
[1761313866835,3.2078,3926.6,3926.5,7.64397]
[1761313867034,3.2097034,3926.6,3926.5,7.64397]
[1761313867235,0.00884,3926.7,3926.6,2.1856]
[1761313867439,0.00884,3926.7,3926.6,7.1856]
[1761313867734,0.022,3927.8,3927.7,2.1856]
[1761313867928,3.2078,3929.5,3928.8,2.1856]
[1761313868129,3.2078,3929.5,3929.0,0.45808]
[1761313868327,3.2078,3929.5,3928.8,2.1856]
[1761313868328,2.3429,3929.0,3928.8,0.00295099]
[1761313868828,3.2078,3929.1,3928.8,0.00295099]
[1761313869030,3.2078,3929.5,3928.8,2.18855099]
[1761313869230,3.2078,3929.5,3928.8,0.00295099]
[1761313869630,0.45808,3929.0,3928.8,0.00295099]
[1761313869833,3.2078,3929.1,3928.8,0.00295099]
[1761313870027,0.00188711,3929.1,3928.8,0.00295099]
[1761313870631,0.00188711,3929.1,3928.8,10.37795099]
[1761313870941,0.00188711,3929.1,3928.9,0.45808]
[1761313871137,0.00188711,3929.1,3928.9,3.74568585]
[1761313871330,0.00188711,3929.1,3929.0,5.0]
[1761313871636,3.2078,3931.3,3929.0,20.88485585]
[1761313871835,3.2078,3931.3,3930.2,3.2078]
[1761313872030,3.66566,3930.9,3930.3,10.362]
[1761313872226,3.66571,3930.5,3929.3,3.2078]
[1761313872430,0.45793,3930.3,3929.7,3.2078]
[1761313872736,0.00213481,3930.3,3929.7,3.2078]
[1761313872938,0.00213481,3930.3,3929.3,3.2078]
[1761313873234,0.46006481,3930.3,3929.5,0.45801]
[1761313873538,0.45797,3930.0,3929.6,7.443]
[1761313873729,0.00213481,3930.3,3929.6,7.443]
[1761313874131,0.00213481,3930.3,3929.7,3.2078]
[1761313874324,0.00213481,3930.3,3930.1,0.45795]
[1761313874531,0.00213481,3930.3,3930.2,3.2078]
[1761313874933,0.00213481,3930.3,3930.1,3.66574]
[1761313875232,0.00213481,3930.3,3930.2,4.114]
[1761313875835,0.00213481,3930.3,3930.1,3.2078]
[1761313876038,0.00213481,3930.3,3928.8,0.00295099]
[1761313876039,0.00213481,3930.3,3929.9,6.2578]
[1761313876238,0.00213481,3930.3,3929.9,3.66577]
[1761313876426,0.00213481,3930.3,3930.1,0.45794]
[1761313876633,0.00213481,3930.3,3929.9,3.2078]
[1761313877141,0.00213481,3930.3,3927.2,2.29143]
[1761313877142,0.45794,3930.2,3929.5,0.45802]
[1761313877333,0.00213481,3930.3,3929.4,4.109]
[1761313877535,0.00213481,3930.3,3929.3,3.2078]
[1761313877536,0.00213481,3930.3,3929.5,10.317]
[1761313877732,0.00213481,3930.3,3929.7,0.45799]
[1761313877934,0.00213481,3930.3,3930.1,0.45794]
[1761313878232,0.00213481,3930.3,3929.8,3.2078]
[1761313878233,0.45797,3929.9,3929.8,3.2078]
[1761313878441,0.45798,3929.9,3929.3,3.66584]
[1761313878738,0.00213481,3930.3,3929.3,3.2078]
[1761313878941,0.00213481,3930.3,3929.7,3.2078]
[1761313879328,0.00213481,3930.3,3930.1,0.45794]
[1761313879528,0.00213481,3930.3,3929.9,10.21053558]
[1761313879529,3.2078,3930.2,3929.9,10.21053558]
[1761313879738,3.2078,3930.2,3926.0,1.79808053]
[1761313879739,0.45802,3929.5,3928.1,3.2078]
[1761313879939,3.66581,3929.6,3928.5,3.2078]
[1761313880128,3.2078,3929.6,3928.5,3.2078]
[1761313880332,0.45809,3928.9,3928.2,0.45817]
[1761313880528,0.45808,3929.0,3928.4,0.45814]
[1761313880737,0.45808,3929.0,3928.1,3.2078]
[1761313880738,0.45808,3929.0,3928.3,0.45815]
[1761313881445,0.45808,3929.0,3928.4,0.45814]
[1761313881739,0.45808,3929.0,3928.1,3.2078]
[1761313882035,0.45808,3929.0,3926.9,2.29164]
[1761313882036,1.1452,3929.0,3927.7,3.2078]
[1761313882248,3.2078,3928.6,3927.7,3.2078]
[1761313882433,0.45817,3928.2,3927.7,3.2078]
[1761313882632,0.45819,3928.1,3927.7,3.2078]
[1761313882829,0.45819,3928.1,3927.7,3.21005291]
[1761313883041,0.4582,3928.0,3927.7,3.21005291]
[1761313883245,0.45822,3927.8,3927.7,0.00225291]
[1761313884644,0.4582,3928.0,3927.7,0.00225291]
[1761313884847,3.2078,3928.6,3927.7,0.00225291]
[1761313885243,0.45819,3928.1,3927.7,0.00225291]
[1761313885543,1.78936943,3930.5,3927.8,3.2078]
[1761313885737,3.66577,3930.0,3929.1,3.2078]
[1761313885932,3.2078,3930.0,3929.1,3.2078]
[1761313886146,0.45795,3930.2,3929.8,0.45798]
[1761313886341,0.45795,3930.2,3929.5,3.2078]
[1761313886342,3.66572,3930.4,3929.5,3.2078]
[1761313886542,3.2078,3930.4,3929.5,3.2078]
[1761313886741,3.2078,3930.9,3930.1,0.45794]
[1761313887041,0.4576,3933.1,3931.6,0.45776]
[1761313887239,3.2078,3931.9,3931.0,3.2078]
[1761313887440,0.45767,3932.6,3931.3,0.45781]
[1761313887640,0.45769,3932.4,3931.0,3.2078]
[1761313887938,0.45771,3932.2,3931.1,0.45783]
[1761313888141,3.2078,3931.5,3931.0,0.00200687]
[1761313888348,0.45781,3931.3,3931.0,0.00200687]
[1761313888646,3.2078,3931.5,3931.0,0.00200687]
[1761313888837,0.45783,3931.2,3931.0,0.00200687]
[1761313889033,3.2078,3931.5,3930.6,3.2078]
[1761313889034,0.45788,3930.7,3930.6,3.10938212]
[1761313889237,0.45788,3930.7,3930.0,3.2078]
[1761313889436,3.2078,3930.5,3929.6,3.2078]
[1761313889636,3.2078,3931.0,3930.1,3.2078]
[1761313889839,0.45794,3930.2,3929.5,3.2078]
[1761313890045,0.45796,3930.0,3929.5,3.21063535]
[1761313890244,0.45798,3929.8,3929.5,0.00283535]
[1761313890446,3.2078,3929.9,3929.5,0.00283535]
[1761313890648,0.45794,3930.2,3929.5,0.00283535]
[1761313890844,3.2078,3929.9,3929.5,0.00283535]
[1761313891241,12.59106,3931.0,3929.5,0.00283535]
[1761313891242,0.45796,3930.1,3929.5,0.00283535]
[1761313891443,3.2078,3930.3,3929.5,0.00283535]
[1761313891752,0.45795,3930.1,3929.5,0.00283535]
[1761313892247,3.2078,3929.9,3929.5,0.00283535]
[1761313892446,3.2078,3930.3,3929.7,0.45799]
[1761313892651,3.2078,3930.3,3929.9,0.45797]
[1761313892847,3.2078,3931.2,3929.9,3.2078]
[1761313893042,1.14429,3932.2,3930.0,0.45796]
[1761313893043,3.2078,3930.8,3930.0,0.45796]
[1761313893242,0.56720998,3930.7,3930.1,0.45794]
[1761313893559,0.56715751,3930.6,3929.8,3.2078]
[1761313893747,3.2078,3930.8,3929.8,3.66578]
[1761313893748,0.45788,3930.7,3929.8,3.66578]
[1761313894141,0.45793,3930.3,3929.8,3.2078]
[1761313894447,0.45796,3930.0,3929.8,3.2078]
[1761313894650,0.45799,3929.8,3929.5,0.00283535]
[1761313895253,3.2078,3929.9,3929.5,0.00283535]
[1761313895254,0.56918428,3929.7,3929.5,0.00283535]
[1761313895549,0.45796,3930.0,3929.5,0.00283535]
[1761313895750,0.64877674,3929.9,3929.5,0.00283535]
[1761313895950,3.2078,3930.4,3929.7,0.45799]
[1761313896254,0.64880679,3930.3,3929.7,0.45799]
[1761313896547,1.32675425,3930.8,3929.5,3.21063535]
[1761313896548,0.64880679,3930.2,3930.0,0.45795]
[1761313896749,0.45789,3930.7,3930.0,0.45795]
[1761313896750,0.56926737,3930.1,3930.0,0.45795]
[1761313897146,0.64880141,3930.1,3930.0,0.45795]
[1761313897347,1.10676141,3930.1,3929.5,3.21063535]
[1761313897554,0.56926737,3930.0,3929.6,0.458]
[1761313897854,3.2078,3930.8,3929.5,0.00283535]
[1761313898153,0.45801,3929.6,3929.5,0.00283535]
[1761313898344,1.32675425,3930.7,3929.6,0.45801]
[1761313898545,3.2078,3931.2,3930.4,3.2078]
[1761313898851,3.2078,3931.2,3929.5,0.00283535]
[1761313898852,3.2078,3931.2,3930.3,3.2078]
[1761313899240,0.45787,3930.8,3930.3,3.2078]
[1761313899439,0.46030843,3930.8,3930.3,3.2078]
[1761313899646,0.00243843,3930.8,3930.5,0.45789]
[1761313899846,0.46030843,3930.8,3930.3,3.2078]
[1761313900046,0.46030843,3930.8,3930.3,3.66572]
[1761313900242,0.4579,3930.6,3930.3,3.2078]
[1761313900456,0.00243843,3930.8,3930.2,3.2078]
[1761313900747,0.00243843,3930.8,3930.5,0.4579]
[1761313900947,0.00243843,3930.8,3930.4,0.45791]
[1761313901253,0.00243843,3930.8,3930.6,0.45789]
[1761313901655,3.2078,3931.8,3931.6,0.45777]
[1761313901856,3.2078,3932.2,3931.3,4.35233]
[1761313902152,3.2078,3932.2,3932.0,0.45772]
[1761313902547,3.2078,3932.7,3932.3,0.45768]
[1761313902854,0.45768,3932.5,3932.3,0.00252115]
[1761313903056,0.45768,3932.5,3930.1,2.28976]
[1761313903057,0.89337754,3932.6,3930.7,3.2078]
[1761313903243,0.45776,3931.8,3930.7,3.2078]
[1761313903441,0.4578,3931.5,3930.7,3.2078]
[1761313903647,0.45781,3931.3,3930.8,0.45786]
[1761313903843,3.2078,3932.0,3930.7,3.2078]
[1761313904145,3.2078,3932.0,3930.7,0.0024162]
[1761313904146,0.45784,3931.1,3930.7,0.0024162]
[1761313904551,0.45781,3931.3,3930.7,0.0024162]
[1761313904751,3.2078,3931.9,3930.9,0.45785]
[1761313904952,2.47096425,3932.4,3930.7,0.0024162]
[1761313904953,3.2078,3931.5,3930.7,0.0024162]
[1761313905157,0.45786,3930.9,3930.7,0.0024162]
[1761313905460,0.45784,3931.1,3930.7,0.0024162]
[1761313905659,3.2078,3931.5,3930.7,0.0024162]
[1761313905660,0.45786,3930.9,3930.7,0.0024162]
[1761313906452,0.45784,3931.1,3930.7,0.0024162]
[1761313906649,0.45785,3931.0,3930.7,0.0024162]
[1761313906963,0.45784,3931.1,3930.7,0.0024162]
[1761313907257,3.2078,3931.5,3930.7,0.0024162]
[1761313907454,0.45784,3931.1,3930.7,0.0024162]
[1761313907647,3.2078,3931.5,3930.7,0.0024162]
[1761313907852,3.2078,3931.5,3930.9,0.45785]
[1761313908053,3.2078,3931.5,3930.7,0.0024162]
[1761313908253,0.45785,3931.0,3930.7,0.0024162]
[1761313908460,0.45784,3931.1,3930.7,0.0024162]
[1761313908655,3.2078,3932.0,3931.0,3.2078]
[1761313908958,0.45778,3931.6,3931.0,3.2078]
[1761313909154,0.45779,3931.5,3931.1,0.45783]
[1761313909354,3.2078,3932.0,3931.0,3.66564]
[1761313909548,3.2078,3932.0,3930.8,3.2078]
[1761313909747,0.45776,3931.7,3931.4,0.45779]
[1761313909954,0.45775,3931.9,3931.5,0.45778]
[1761313910152,3.2078,3932.0,3931.2,3.2078]
[1761313910461,3.2078,3932.5,3931.2,3.2078]
[1761313910658,1.14433,3932.0,3930.8,3.2078]
[1761313910871,0.4578,3931.4,3930.7,0.0024162]
[1761313911057,3.66558,3931.6,3930.7,0.0024162]
[1761313911256,3.66553,3932.0,3931.6,0.45777]
[1761313911462,0.0024903,3932.7,3931.4,3.2078]
[1761313911463,3.2078,3932.5,3931.4,3.2078]
[1761313911659,3.2078,3932.5,3930.7,0.0024162]
[1761313911660,3.2078,3932.5,3931.8,3.2078]
[1761313911966,3.2078,3932.5,3932.3,0.45769]
[1761313912459,3.2078,3932.5,3931.8,3.2078]
[1761313912655,0.0024903,3932.7,3931.8,3.2078]
[1761313912856,0.0024903,3932.7,3932.3,0.45769]
[1761313913049,0.0024903,3932.7,3931.8,3.2078]
[1761313913256,0.4577,3932.3,3931.8,3.66555]
[1761313913457,0.0024903,3932.7,3931.8,3.66555]
[1761313913458,0.0024903,3932.7,3931.8,3.2078]
[1761313913764,0.45767,3932.5,3932.1,0.45771]
[1761313914062,0.45767,3932.5,3932.1,0.45772]
[1761313914362,0.45766,3932.6,3932.2,0.4577]
[1761313914561,0.45769,3932.4,3931.8,3.66555]
[1761313914760,0.4577,3932.3,3931.8,3.2078]
[1761313915259,3.2078,3932.5,3931.8,3.2078]
[1761313915260,0.45773,3932.0,3931.8,3.2078]
[1761313915470,3.2078,3932.5,3930.7,7.7711162]
[1761313915471,1.14422,3932.4,3931.3,3.2078]
[1761313915759,0.45779,3931.5,3931.3,3.2078]
[1761313915958,0.45777,3931.7,3931.3,3.2078]
[1761313916655,0.89337754,3932.4,3931.3,3.2078]
[1761313916960,3.2078,3932.5,3931.3,3.2078]
[1761313917165,3.2078,3932.5,3931.7,3.66556]
[1761313917365,0.4577,3932.3,3931.7,3.2078]
[1761313917659,3.2078,3932.1,3931.2,3.2078]
[1761313918162,0.45774,3931.9,3931.3,0.45781]
[1761313918362,0.45773,3932.0,3931.5,0.45778]
[1761313918862,3.2078,3932.1,3931.6,0.45777]
[1761313919056,3.2078,3932.1,3931.2,3.2078]
[1761313919057,0.45773,3932.0,3931.5,0.45778]
[1761313919259,0.45775,3931.8,3931.2,3.2078]
[1761313919458,3.2078,3932.1,3931.2,3.2078]
[1761313919760,0.45773,3932.0,3931.5,0.45778]
[1761313919969,0.45771,3932.2,3931.6,3.2078]
[1761313920160,3.2078,3932.5,3931.6,3.2078]
[1761313920562,3.66547,3932.5,3931.6,3.2078]
[1761313920763,0.45767,3932.5,3932.0,3.66552]
[1761313921069,3.2102903,3932.7,3932.0,3.66552]
[1761313921255,0.4577,3932.3,3931.7,0.45776]
[1761313921456,1.14418,3932.5,3931.6,3.2078]
[1761313921661,0.45774,3932.0,3931.6,3.2078]
[1761313921867,1.14449,3931.5,3930.8,3.2078]
[1761313922067,3.2078,3931.5,3930.7,0.0024162]
[1761313922261,3.2078,3932.0,3931.1,3.2078]
[1761313922456,3.2078,3931.4,3930.7,0.0024162]
[1761313922661,0.45787,3930.8,3930.7,0.0024162]
[1761313922858,1.14487,3930.2,3929.0,3.2078]
[1761313923058,0.458,3929.7,3929.0,3.2078]
[1761313923257,0.45803,3929.5,3929.0,3.2078]
[1761313923462,0.45811,3928.7,3928.6,3.2078]
[1761313923764,0.00257061,3928.7,3928.6,0.00284495]
[1761313923962,0.46069061,3928.7,3928.6,0.00284495]
[1761313924163,0.00257061,3928.7,3928.6,0.00284495]
[1761313925166,0.00257061,3928.7,3928.6,3.21064495]
[1761313925470,0.00257061,3928.7,3928.6,0.00284495]
[1761313929470,0.45832,3927.0,3926.5,3.2078]
[1761313929673,3.2078,3927.3,3926.1,4.11560455]
[1761313929874,3.2078,3927.4,3926.5,3.2078]
[1761313930172,3.2078,3927.7,3926.6,3.2078]
[1761313930371,3.2078,3926.7,3926.6,0.00320424]
[1761313930567,3.2078,3926.7,3925.8,3.2078]
[1761313930762,3.2078,3927.3,3926.2,3.2078]
[1761313931078,0.45821,3927.9,3927.1,3.2078]
[1761313931268,3.2078,3928.0,3927.1,3.2078]
[1761313931463,3.2078,3928.0,3927.3,0.45827]
[1761313931666,3.2078,3928.4,3927.3,0.00204651]
[1761313931863,3.66595,3928.4,3927.7,0.45822]
[1761313932069,3.66601,3927.9,3927.3,0.00204651]
[1761313932282,0.45821,3927.9,3927.3,0.00204651]
[1761313932664,3.66595,3928.4,3927.4,3.2078]
[1761313932968,0.45818,3928.2,3927.6,0.45823]
[1761313933273,3.2078,3928.4,3927.4,3.2078]
[1761313933573,0.45816,3928.3,3927.6,0.45823]
[1761313933773,0.45816,3928.3,3927.7,0.45822]
[1761313934271,3.2078,3928.4,3927.8,3.2078]
[1761313934466,3.2078,3928.4,3928.1,0.45817]
[1761313935065,0.00257061,3928.7,3928.4,0.45814]
[1761313935278,0.00257061,3928.7,3928.3,3.66595]
[1761313935477,0.00257061,3928.7,3928.3,3.2078]
[1761313935774,0.00257061,3928.7,3928.5,0.45812]
[1761313938270,0.00257061,3928.7,3928.3,3.2078]
[1761313938470,0.00257061,3928.7,3928.3,3.66595]
[1761313938774,0.00257061,3928.7,3928.5,0.45813]
[1761313940773,3.2078,3930.1,3929.8,0.45798]
[1761313940976,3.2078,3930.6,3929.7,3.2078]
[1761313941271,3.2078,3930.6,3930.4,0.45791]
[1761313941470,1.1444,3931.8,3930.5,1.14476]
[1761313941471,3.2078,3931.5,3930.5,1.14476]
[1761313941676,0.00295467,3931.5,3931.1,0.45783]
[1761313941873,0.00295467,3931.5,3931.2,0.45782]
[1761313942180,0.00295467,3931.5,3930.5,1.14662627]
[1761313942181,0.00295467,3931.5,3931.3,3.6656]
[1761313942384,3.2078,3932.0,3931.8,0.45775]
[1761313942582,0.022,3932.8,3931.8,8.2078]
[1761313942778,0.022,3932.8,3932.3,3.2078]
[1761313943279,0.022,3932.8,3932.7,3.2078]
[1761313943488,0.02461974,3932.8,3932.7,3.2078]
[1761313944885,3.2078,3934.1,3932.7,8.2078]
[1761313945088,0.45751,3933.9,3933.2,3.2078]
[1761313945281,0.45752,3933.9,3933.2,3.2078]
[1761313945488,3.2078,3934.5,3933.6,3.2078]
[1761313945685,3.2078,3934.5,3934.0,0.45749]
[1761313945884,3.66513,3935.5,3934.5,0.45744]
[1761313946093,3.66513,3935.5,3934.4,3.2078]
[1761313946295,0.45747,3934.2,3934.0,3.2078]
[1761313946593,3.66524,3934.5,3933.6,3.21069201]
[1761313946898,0.00283643,3934.5,3934.0,3.2078]
[1761313947190,0.00283643,3934.5,3934.4,3.2078]
[1761313947788,3.2078,3935.9,3934.6,0.45741]
[1761313948093,3.2078,3935.9,3935.0,0.45737]
[1761313948296,40.8,3937.3,3935.4,3.2078]
[1761313948297,3.2078,3936.8,3935.4,3.2078]
[1761313948494,3.2078,3936.8,3935.9,3.2078]
[1761313948697,0.4572,3936.6,3936.3,3.2078]
[1761313948890,0.00203916,3936.8,3936.3,3.2078]
[1761313949087,0.00203916,3936.8,3936.7,3.2078]
[1761313949394,0.00203916,3936.8,3936.7,3.20973591]
[1761313949695,0.45708,3937.6,3936.7,18.76391591]
[1761313949895,3.2078,3937.7,3936.7,3.20973591]
[1761313949896,0.4571,3937.5,3936.7,3.20973591]
[1761313950096,0.45716,3936.9,3936.7,0.00193591]
[1761313950495,3.2078,3937.0,3935.0,3.2078]
[1761313950696,3.2078,3937.0,3934.8,3.049]
[1761313950697,0.45733,3935.5,3935.1,3.2078]
[1761313950901,3.2078,3935.6,3934.6,3.2078]
[1761313951398,0.0032124,3935.6,3935.5,3.2078]
[1761313953097,0.0032124,3935.6,3935.5,8.2078]
[1761313953501,0.0032124,3935.6,3935.5,3.2078]
[1761313953705,3.2078,3937.9,3935.6,11.4327]
[1761313953901,0.47906,3937.8,3937.1,3.2078]
[1761313954098,0.022,3937.8,3937.1,3.2078]
[1761313954706,0.02519747,3937.8,3937.3,0.4571]
[1761313954998,0.48225747,3937.8,3937.1,3.2078]
[1761313955201,0.45706,3937.7,3937.1,3.2078]
[1761313955395,0.02519747,3937.8,3937.1,3.66492]
[1761313955795,0.02519747,3937.8,3937.2,0.45712]
[1761313956000,0.02519747,3937.8,3937.3,0.4571]
[1761313956397,0.02519747,3937.8,3937.7,3.2078]
[1761313956598,0.02519747,3937.8,3937.7,3.20979407]
[1761313957502,0.02519747,3937.8,3937.7,0.00199407]
[1761313958299,0.02519747,3937.8,3937.7,3.20979407]
[1761313959102,0.48224747,3937.8,3937.7,0.00199407]
[1761313959804,0.45713,3937.2,3936.7,3.2078]
[1761313960004,0.45716,3936.9,3936.7,3.2078]
[1761313960610,3.2078,3937.6,3936.2,3.2078]
[1761313960794,3.2078,3937.6,3936.7,3.2078]
[1761313960995,0.45711,3937.3,3936.7,3.2078]
[1761313961200,0.45713,3937.2,3936.7,3.66497]
[1761313961399,3.2078,3937.1,3936.3,3.2078]
[1761313961706,0.4572,3936.6,3936.2,0.00303627]
[1761313962007,0.45716,3936.9,3936.4,0.45721]
[1761313962199,3.2078,3937.5,3936.5,3.665]
[1761313962396,0.4571,3937.4,3936.6,0.45719]
[1761313962607,0.4571,3937.4,3936.2,0.00303627]
[1761313962608,0.4572,3936.6,3936.2,0.00303627]
[1761313962798,0.45717,3936.8,3936.2,0.46027627]
[1761313963007,0.45717,3936.8,3936.3,3.2078]
[1761313963199,0.45721,3936.5,3936.2,0.00303627]
[1761313963403,0.45719,3936.7,3936.3,3.2078]
[1761313963910,0.45717,3936.9,3936.3,3.66502]
[1761313964109,3.2078,3937.1,3936.3,3.2078]
[1761313964309,3.2078,3937.1,3936.2,0.00303627]
[1761313964310,3.2078,3936.6,3934.9,3.2078]
[1761313964521,0.45737,3935.1,3934.9,3.2078]
[1761313964806,3.2078,3935.6,3934.5,3.2078]
[1761313965016,1.14334,3935.4,3934.5,3.2078]
[1761313965212,0.45741,3934.7,3934.5,3.2078]
[1761313965407,0.00320958,3934.7,3934.5,3.21110347]
[1761313965813,0.00320958,3934.7,3934.5,3.66852347]
[1761313966011,0.00320958,3934.7,3934.5,3.21110347]
[1761313966215,3.2078,3936.6,3935.5,0.4573]
[1761313966508,0.45721,3936.4,3935.9,0.45726]
[1761313966710,0.45718,3936.6,3936.2,3.2078]
[1761313967012,3.2078,3936.6,3935.7,3.2078]
[1761313967217,3.2078,3936.6,3934.9,2.28686]
[1761313967218,0.00181087,3936.6,3936.5,3.2078]
[1761313968615,0.00181087,3936.6,3936.5,3.66499]
[1761313969013,0.00181087,3936.6,3936.5,3.2078]
[1761313970117,0.00181087,3936.6,3936.2,0.45723]
[1761313970315,0.00181087,3936.6,3936.1,3.66503]
[1761313970515,0.00181087,3936.6,3936.1,3.2078]
[1761313970813,0.00181087,3936.6,3936.5,3.2078]
[1761313971617,0.00181087,3936.6,3936.5,3.66499]
[1761313971914,0.00181087,3936.6,3936.5,3.2078]
[1761313972917,0.022,3937.8,3937.5,0.45707]
[1761313973110,0.022,3937.8,3937.6,0.45706]
[1761313973314,0.022,3937.8,3937.5,3.2078]
[1761313973515,0.022,3937.8,3937.4,0.45709]
[1761313973715,0.022,3937.8,3937.5,3.2078]
[1761313973920,0.02454574,3937.8,3937.5,3.20994787]
[1761313974315,0.02454574,3937.8,3937.6,0.45706]
[1761313974518,0.98758096,3938.9,3937.6,1.14266]
[1761313974712,0.98758096,3938.9,3937.5,4.35264787]
[1761313974713,0.54530467,3938.8,3938.3,3.2078]
[1761313974913,0.98758096,3938.9,3938.4,0.45697]
[1761313975214,0.54527404,3938.8,3938.3,3.66478]
[1761313975413,0.54527404,3938.7,3938.3,3.2078]
[1761313975618,0.00193008,3938.7,3938.3,3.66478]
[1761313975821,0.45887008,3938.7,3938.3,3.2078]
[1761313976010,0.00193008,3938.7,3938.3,3.66477]
[1761313976417,0.00193008,3938.7,3938.3,3.66478]
[1761313976818,0.45887008,3938.7,3938.3,3.2078]
[1761313977120,1.14245,3938.4,3937.9,3.2078]
[1761313977320,0.00193008,3938.7,3937.9,3.2078]
[1761313977510,0.54593212,3938.6,3937.9,3.2078]
[1761313977718,0.457,3938.2,3937.9,3.2078]
[1761313977917,0.00193008,3938.7,3937.9,3.2078]
[1761313978116,0.45701,3938.1,3937.9,3.2078]
[1761313978623,0.45699,3938.3,3937.9,3.2078]
[1761313979022,0.45698,3938.4,3938.0,0.45702]
[1761313979325,0.45699,3938.3,3937.9,3.2078]
[1761313979724,1.14238,3938.6,3937.9,3.2078]
[1761313979925,0.457,3938.2,3937.9,3.2078]
[1761313980224,0.45699,3938.3,3937.9,3.2078]
[1761313980416,0.45696,3938.5,3938.0,0.45701]
[1761313980619,0.54571478,3938.4,3937.9,3.2078]
[1761313980824,0.54571478,3938.4,3937.5,0.00214787]
[1761313980825,0.54573377,3938.3,3937.5,3.20994787]
[1761313981023,0.45706,3937.7,3937.5,0.00214787]
[1761313981328,0.54573377,3937.6,3937.5,0.00214787]
[1761313981941,0.45702,3938.1,3937.5,3.66701787]
[1761313982227,0.45701,3938.2,3937.7,0.45705]
[1761313982418,1.00329184,3938.1,3937.7,0.45705]
[1761313982620,0.54624729,3938.0,3937.7,0.45705]